bitfinex/quotes_ETHUSD_20251224
["timestamp","ask_amount","ask_price","bid_price","bid_amount"]
[1766600163311,0.00207588,2936.9,2936.4,0.003]
[1766600163533,7.2236,2936.8,2936.0,1.30401636]
[1766600163694,0.001,2936.9,2936.5,4.84918327]
[1766600164022,4.84918327,2938.1,2936.5,0.48491833]
[1766600164308,7.2236,2937.9,2936.9,6.8177]
[1766600164483,7.2236,2937.9,2936.8,4.84918327]
[1766600164484,0.03409013,2937.8,2937.0,0.03404834]
[1766600164676,7.2236,2937.3,2935.8,6.99561762]
[1766600164877,7.2236,2937.0,2936.1,4.511802]
[1766600165076,0.04256188,2936.9,2936.2,0.4681765]
[1766600165307,0.04256188,2936.9,2936.3,6.8177]
[1766600165608,7.2236,2937.4,2936.5,6.8177]
[1766600165808,7.2236,2937.4,2936.6,0.01698469]
[1766600165994,7.98851608,2937.3,2936.6,0.01698469]
[1766600166309,0.72236,2937.3,2936.6,6.8177]
[1766600166507,0.76491608,2937.3,2936.6,6.8177]
[1766600166677,7.2236,2937.2,2936.2,7.2688802]
[1766600166873,0.04255898,2937.1,2936.5,6.8177]
[1766600167109,0.04255319,2937.5,2936.6,6.83468819]
[1766600167303,10.62773943,2937.6,2936.7,0.01698181]
[1766600167503,1.53503239,2937.5,2936.6,6.8177]
[1766600167705,8.75863239,2937.5,2936.7,0.01698181]
[1766600167906,8.75863239,2937.5,2936.6,6.8177]
[1766600167907,8.7160792,2937.5,2936.6,6.8177]
[1766600168108,0.04255464,2937.4,2936.6,6.8177]
[1766600168308,7.2236,2937.3,2936.1,4.675302]
[1766600168613,7.2236,2937.1,2936.2,0.90699281]
[1766600168819,7.26616043,2937.0,2936.2,4.31274479]
[1766600169002,7.26616043,2937.0,2935.7,3.4062321]
[1766600169003,7.2236,2936.9,2935.7,3.4062321]
[1766600169309,10.62835149,2937.1,2936.1,6.8177]
[1766600169514,7.2236,2937.0,2936.2,0.01699514]
[1766600169714,7.26616188,2936.9,2936.2,0.01699514]
[1766600169883,7.2236,2936.9,2935.8,0.34062321]
[1766600170087,7.2236,2936.7,2935.9,0.01700268]
[1766600170395,7.26616623,2936.6,2935.9,3.42306712]
[1766600170608,7.26616623,2936.6,2936.0,0.01700442]
[1766600170609,7.2236,2936.6,2936.0,0.01700442]
[1766600170910,7.2236,2936.4,2936.0,0.01700326]
[1766600171117,0.04257058,2936.3,2935.7,0.01700558]
[1766600171814,0.04257058,2936.3,2935.5,11.11422806]
[1766600172015,0.04257058,2936.3,2935.6,0.01701486]
[1766600172221,7.26617058,2936.3,2935.1,6.8177]
[1766600172524,7.2236,2936.1,2935.2,0.01702182]
[1766600172726,7.2236,2935.9,2934.8,3.4073576]
[1766600172885,10.6299426,2935.7,2934.9,0.01702472]
[1766600173087,7.2236,2935.5,2934.8,0.01703284]
[1766600173384,0.04258363,2935.4,2934.8,0.01703284]
[1766600173815,7.95021836,2935.4,2934.5,6.8177]
[1766600174116,7.2236,2935.4,2934.8,3.40738065]
[1766600174288,7.2236,2935.4,2934.8,3.42441872]
[1766600174889,7.2236,2935.4,2934.8,0.01703807]
[1766600175210,7.2236,2935.4,2934.7,3.40749752]
[1766600175416,7.2236,2935.4,2934.8,0.01703924]
[1766600175612,8.28660709,2935.4,2934.8,0.01703924]
[1766600176297,7.2236,2935.4,2934.8,0.01703807]
[1766600176506,11.52185112,2935.8,2934.8,10.24210746]
[1766600176687,7.26617928,2935.7,2934.8,10.22506939]
[1766600177015,7.2236,2935.7,2934.9,0.017034]
[1766600177317,0.04258073,2935.6,2934.9,0.017034]
[1766600177755,7.26618073,2935.6,2934.6,3.40761796]
[1766600177888,8.63150289,2935.5,2934.6,3.40761796]
[1766600178228,0.04258363,2935.4,2934.6,10.22531796]
[1766600178931,7.26618363,2935.4,2934.6,10.22531796]
[1766600179221,7.2236,2935.4,2934.6,10.22531796]
[1766600179392,0.04258508,2935.3,2934.6,11.67762328]
[1766600180209,1.40790289,2935.5,2934.7,6.83474214]
[1766600180515,7.2236,2935.3,2934.6,4.85991519]
[1766600180721,0.04258653,2935.2,2934.6,2.34230532]
[1766600181120,0.04258653,2935.2,2934.6,5.74987088]
[1766600181622,0.04258653,2935.2,2934.6,2.34230532]
[1766600182120,0.04258653,2935.2,2934.6,1.45230532]
[1766600182320,0.04258653,2935.2,2934.5,0.89]
[1766600182517,0.04258653,2935.2,2934.6,0.01704504]
[1766600183087,7.2236,2935.1,2934.4,0.001]
[1766600183318,3.44951358,2935.2,2934.4,0.001]
[1766600183319,7.26618943,2935.0,2934.4,0.001]
[1766600183622,7.2236,2935.0,2934.4,3.40883357]
[1766600183823,7.2236,2935.0,2934.5,0.01705085]
[1766600184188,7.2236,2935.0,2934.4,0.001]
[1766600184392,7.2236,2935.0,2934.4,0.01804969]
[1766600185024,7.2236,2935.0,2934.4,0.001]
[1766600186015,7.2236,2934.8,2934.4,0.001]
[1766600187821,7.2236,2934.8,2933.8,10.22616311]
[1766600187822,7.26619379,2934.7,2933.8,10.22616311]
[1766600188024,7.2236,2934.7,2933.9,3.42543232]
[1766600188323,8.15819524,2934.6,2933.4,0.002]
[1766600188525,7.2236,2934.4,2933.4,0.002]
[1766600188831,7.2236,2934.2,2933.4,0.002]
[1766600188998,7.2236,2934.0,2933.4,0.002]
[1766600189316,7.2662054,2933.9,2933.4,0.002]
[1766600189511,7.2236,2933.9,2933.4,0.002]
[1766600189715,7.2236,2933.9,2933.2,0.001]
[1766600189716,7.2236,2933.7,2933.2,0.001]
[1766600189914,4.56084019,2933.9,2933.2,0.001]
[1766600189915,0.04260976,2933.6,2933.2,0.001]
[1766600190229,0.04260685,2933.8,2933.2,0.001]
[1766600190522,0.04260685,2933.8,2933.2,6.8187]
[1766600190725,8.1156,2934.1,2933.2,8.18246498]
[1766600190894,7.2236,2934.8,2933.3,6.8177]
[1766600191101,7.2236,2934.6,2933.3,6.8177]
[1766600191696,7.0252,2934.4,2933.4,10.43651343]
[1766600192211,7.06779959,2934.3,2933.4,10.43651343]
[1766600192421,8.41352707,2934.3,2933.4,10.43651343]
[1766600192638,3.40727111,2934.9,2933.5,7.0275]
[1766600192639,7.0252,2934.8,2933.5,7.0275]
[1766600192818,7.0252,2934.6,2933.5,7.0275]
[1766600193018,7.0252,2934.4,2933.5,7.0275]
[1766600193333,7.0252,2934.4,2933.6,8.07115134]
[1766600193524,7.0252,2934.4,2933.6,7.0275]
[1766600193720,0.04259959,2934.3,2933.7,3.40866482]
[1766600193921,0.04259959,2934.3,2933.7,10.43616482]
[1766600194110,0.04259959,2934.3,2933.7,11.8206663]
[1766600194708,0.04259959,2934.3,2933.7,8.41200148]
[1766600195817,0.04259959,2934.3,2933.7,11.82060642]
[1766600196312,7.0252,2934.4,2933.7,11.82060642]
[1766600197316,6.7422,2935.1,2933.9,7.2453]
[1766600197645,6.7422,2934.9,2934.0,0.03408316]
[1766600197852,10.14970772,2934.7,2934.0,0.03408316]
[1766600198146,6.7422,2934.7,2934.0,3.44236549]
[1766600198347,6.7422,2934.7,2934.0,10.68766549]
[1766600198634,6.7422,2934.7,2934.0,11.72234888]
[1766600199327,0.04259524,2934.6,2934.0,8.31406655]
[1766600199526,6.78479524,2934.6,2934.0,1.06876655]
[1766600199736,6.78479524,2934.6,2934.1,0.034082]
[1766600200039,6.78479524,2934.6,2934.0,0.03408316]
[1766600200338,6.78479524,2934.6,2934.0,3.44238872]
[1766600200711,7.6352,2935.1,2934.1,7.2453]
[1766600200917,6.78478943,2935.0,2934.2,8.68898133]
[1766600201131,6.7422,2935.3,2934.2,7.2453]
[1766600201443,0.04258653,2935.2,2934.2,7.2453]
[1766600201635,6.7422,2935.1,2934.2,7.2453]
[1766600201830,6.78478943,2935.0,2934.3,0.81353]
[1766600202033,6.78478943,2935.0,2934.4,0.03407851]
[1766600204042,6.7422,2934.9,2934.4,0.03407851]
[1766600204233,6.7422,2934.7,2934.4,0.03407851]
[1766600204431,6.7422,2934.7,2934.1,4.29819343]
[1766600204638,6.7422,2934.7,2934.3,3.40796608]
[1766600204945,6.7422,2934.7,2934.2,4.56258283]
[1766600205546,6.7422,2934.7,2934.2,1.15454934]
[1766600206349,6.7422,2935.1,2934.3,7.2453]
[1766600206849,6.7422,2935.1,2934.4,0.03407851]
[1766600207060,6.7422,2934.9,2934.3,0.03407967]
[1766600210728,6.7422,2934.9,2934.3,3.44204662]
[1766600210927,6.7432,2934.9,2934.3,3.44204662]
[1766600211327,6.7432,2934.9,2934.3,3.44203587]
[1766600212044,6.7432,2934.9,2934.3,0.03407967]
[1766600212633,6.7432,2934.9,2934.3,10.68733316]
[1766600212821,6.7432,2934.9,2934.3,12.1782613]
[1766600213021,6.7432,2934.9,2934.3,8.77030781]
[1766600214557,6.7432,2934.9,2934.4,0.03407851]
[1766600215463,7.08893216,2935.6,2934.5,6.1017]
[1766600215758,6.7422,2935.4,2934.0,3.41024223]
[1766600215960,6.7422,2935.2,2934.1,0.034082]
[1766600216152,6.7422,2935.0,2934.0,0.002]
[1766600216350,0.893,2934.9,2934.0,0.002]
[1766600216541,6.7422,2934.8,2934.0,0.002]
[1766600217253,6.81500664,2934.7,2934.0,0.002]
[1766600217458,6.7422,2934.6,2934.0,0.002]
[1766600217657,6.7422,2934.4,2934.0,0.002]
[1766600218369,6.7422,2934.4,2933.5,0.002]
[1766600218370,6.7422,2934.2,2933.5,0.002]
[1766600218569,6.7422,2934.0,2933.5,0.002]
[1766600218870,6.7422,2933.8,2933.5,0.002]
[1766600219033,6.7422,2933.6,2932.8,0.002]
[1766600219232,7.66929884,2933.5,2932.8,0.002]
[1766600219432,7.6352,2933.5,2932.8,0.002]
[1766600219637,6.7422,2933.3,2932.8,0.002]
[1766600219838,0.03409884,2933.2,2932.8,0.002]
[1766600220055,6.77629884,2933.2,2932.8,0.34660315]
[1766600220257,6.77629884,2933.2,2932.9,0.03409594]
[1766600220460,3.40828842,2934.1,2932.9,6.0903]
[1766600220461,6.7422,2933.7,2932.9,6.0903]
[1766600220760,1.35572066,2934.5,2933.1,6.0903]
[1766600220761,6.7422,2934.0,2933.1,6.0903]
[1766600220976,6.7422,2934.0,2933.2,6.12439245]
[1766600221770,6.9661,2933.9,2933.2,6.0903]
[1766600222157,6.9661,2933.9,2933.2,9.49953815]
[1766600222352,6.9661,2933.9,2933.3,0.94995382]
[1766600223149,6.9661,2933.7,2933.0,3.40941251]
[1766600223401,6.9661,2933.7,2933.1,0.03409362]
[1766600223853,6.9661,2933.7,2932.9,3.44366843]
[1766600223854,6.9661,2933.6,2932.9,3.44366843]
[1766600224874,6.9661,2933.6,2932.9,0.03409594]
[1766600225078,6.9661,2933.6,2932.9,1.32798048]
[1766600226468,6.9661,2933.6,2932.9,4.73756053]
[1766600227367,0.893,2933.8,2933.0,6.0698]
[1766600227551,0.893,2933.8,2933.2,6.0665]
[1766600227751,0.893,2933.8,2933.3,0.002]
[1766600228481,7.8591,2933.8,2933.3,0.002]
[1766600228781,6.9661,2933.7,2933.3,0.002]
[1766600229477,10.37431989,2934.1,2933.3,0.002]
[1766600229682,0.893,2934.0,2933.3,6.09609129]
[1766600230185,11.26742936,2934.0,2933.3,6.09609129]
[1766600230899,6.9661,2933.9,2933.3,0.03609129]
[1766600231202,6.9661,2933.9,2933.3,0.002]
[1766600231901,8.43367587,2933.9,2932.9,4.70342035]
[1766600232996,8.43367587,2933.9,2932.7,13.35351017]
[1766600232997,6.9661,2933.7,2932.7,13.35351017]
[1766600233204,6.9661,2933.5,2932.8,3.44579478]
[1766600233402,6.9661,2933.5,2932.8,3.41164862]
[1766600233571,6.9661,2933.5,2932.8,5.12227141]
[1766600235698,6.9661,2933.4,2932.8,0.0360971]
[1766600236075,6.9661,2933.5,2932.8,9.48950415]
[1766600236401,6.9661,2933.5,2932.8,9.45540705]
[1766600236701,6.9661,2933.5,2932.9,0.03409594]
[1766600237401,6.9661,2933.9,2933.0,6.0408]
[1766600237569,7.8591,2933.9,2933.1,6.07199362]
[1766600237771,7.8591,2933.9,2933.2,9.44714587]
[1766600237972,7.8591,2933.9,2933.3,0.03409129]
[1766600238173,7.8591,2933.9,2933.2,9.44714587]
[1766600238174,11.26754408,2933.9,2933.2,6.0379]
[1766600238476,6.9661,2933.8,2933.2,6.0379]
[1766600238690,6.9661,2933.8,2933.2,6.07199245]
[1766600239099,6.9661,2933.8,2933.2,6.0379]
[1766600239401,6.9661,2933.8,2933.1,0.03409362]
[1766600239898,10.3747236,2933.8,2933.1,0.03409362]
[1766600240604,6.9661,2933.7,2933.1,0.03409362]
[1766600241703,6.9661,2933.7,2933.1,6.06069362]
[1766600242105,6.9661,2933.7,2933.1,9.47002451]
[1766600242308,6.9661,2933.7,2933.1,10.72389151]
[1766600243005,6.9661,2933.7,2933.1,7.31456062]
[1766600244091,1.37671114,2933.9,2933.2,6.0211]
[1766600244092,0.001,2933.9,2933.2,6.0211]
[1766600244296,7.8601,2933.9,2933.3,0.03409129]
[1766600244492,7.8601,2933.9,2933.3,1.10933861]
[1766600245410,11.26855062,2933.9,2933.3,1.10933861]
[1766600247311,7.8601,2933.9,2933.3,1.10933861]
[1766600247698,6.9671,2933.9,2933.3,1.10933861]
[1766600247901,10.37554433,2933.9,2933.3,1.10933861]
[1766600248299,6.9671,2933.9,2933.3,1.10933861]
[1766600249042,10.37555584,2933.9,2933.3,1.10933861]
[1766600249186,6.9661,2933.8,2933.3,0.03409129]
[1766600250482,0.001,2933.9,2933.4,6.0027]
[1766600250687,0.001,2933.9,2933.5,6.03428897]
[1766600250885,0.001,2933.9,2933.5,6.97863083]
[1766600251210,0.001,2933.9,2933.5,6.94454186]
[1766600251513,0.001,2933.9,2933.5,0.94434186]
[1766600251685,0.001,2933.9,2933.2,9.40698007]
[1766600251686,6.8901,2933.8,2933.1,3.40931659]
[1766600252011,6.8901,2933.8,2933.2,3.40923838]
[1766600252214,6.8901,2933.8,2933.3,0.94070384]
[1766600252616,0.001,2933.9,2933.4,6.02949013]
[1766600256018,0.001,2933.9,2933.5,3.40889722]
[1766600256317,0.001,2933.9,2933.6,0.03408781]
[1766600258316,0.001,2933.9,2933.6,3.44286825]
[1766600258987,0.001,2933.9,2933.6,0.03408781]
[1766600260218,4.85014083,2934.5,2933.6,0.94383248]
[1766600260411,6.8602,2934.1,2933.4,3.40901343]
[1766600261015,6.8612,2933.9,2933.4,3.40901343]
[1766600261719,6.8602,2933.8,2933.1,3.4092682]
[1766600262411,6.8602,2933.8,2933.0,0.002]
[1766600262816,6.8602,2933.7,2933.0,0.002]
[1766600263498,6.8602,2933.7,2933.0,0.97704893]
[1766600264048,6.8602,2933.5,2932.9,0.002]
[1766600264225,6.8602,2933.2,2932.5,0.002]
[1766600264521,6.8602,2933.2,2932.5,3.44611107]
[1766600264708,6.8602,2933.1,2932.5,0.002]
[1766600265109,4.52548365,2933.2,2932.3,0.002]
[1766600265110,6.8602,2932.9,2932.3,0.002]
[1766600265311,0.0341,2933.0,2932.3,0.002]
[1766600265312,0.0341,2932.8,2932.3,0.002]
[1766600265501,4.85014083,2933.0,2932.3,3.41226014]
[1766600265502,6.8602,2932.7,2932.3,3.41226014]
[1766600265701,6.8602,2932.7,2932.4,0.03410175]
[1766600266419,6.8602,2932.7,2932.4,3.44427492]
[1766600267024,6.8602,2932.7,2932.4,0.03410175]
[1766600268639,1.11623473,2933.2,2932.4,3.78910176]
[1766600268811,6.8943,2933.1,2932.4,10.28970176]
[1766600269011,6.8602,2933.1,2932.4,10.25560001]
[1766600269213,6.8943,2933.0,2932.4,3.75500001]
[1766600269413,6.8602,2933.0,2932.5,0.03410059]
[1766600272928,6.8602,2933.0,2932.5,3.44414296]
[1766600273341,6.8602,2933.0,2932.5,4.8145161]
[1766600274059,6.90281993,2932.9,2932.1,0.002]
[1766600274209,6.81895764,2933.0,2932.1,0.002]
[1766600274210,6.8602,2932.7,2932.1,0.002]
[1766600274415,6.8602,2932.5,2932.1,0.002]
[1766600274614,0.893,2932.8,2932.1,0.002]
[1766600274615,6.90282719,2932.4,2932.1,0.002]
[1766600274840,6.8602,2932.4,2932.1,0.002]
[1766600277444,6.90282865,2932.3,2932.0,0.001]
[1766600277616,6.8602,2932.3,2932.0,0.001]
[1766600278013,6.8602,2932.3,2931.7,0.002]
[1766600278218,6.8602,2932.2,2931.7,3.4129783]
[1766600279211,6.8602,2932.2,2931.7,0.002]
[1766600279416,6.8602,2932.2,2931.7,3.4128778]
[1766600279650,6.8602,2932.4,2931.8,0.01706892]
[1766600279857,0.04262865,2932.3,2931.8,0.01706892]
[1766600280456,0.04262865,2932.3,2931.9,6.5006]
[1766600280756,6.90282719,2932.4,2932.0,0.0170631]
[1766600280964,6.90282719,2932.4,2931.8,0.0170631]
[1766600280965,6.8602,2932.4,2931.8,0.0170631]
[1766600281532,6.8602,2932.4,2931.9,3.41075752]
[1766600281757,6.8602,2932.4,2931.8,3.4108294]
[1766600283926,0.04262865,2932.3,2931.8,3.4108294]
[1766600284132,0.04262865,2932.3,2931.8,4.77777958]
[1766600286021,6.5177,2932.4,2931.8,4.77777958]
[1766600286223,0.04262865,2932.3,2931.8,4.77777958]
[1766600286819,6.56032865,2932.3,2931.8,4.77777958]
[1766600288348,6.56032865,2932.3,2931.8,3.4108294]
[1766600290047,7.4107,2932.6,2931.9,6.95470757]
[1766600290225,11.67552601,2933.0,2931.9,6.9206]
[1766600290226,6.56032574,2932.5,2931.9,6.9206]
[1766600291131,6.56032574,2932.5,2931.7,10.67673945]
[1766600291440,6.56032574,2932.5,2932.0,0.002]
[1766600292447,6.5177,2932.4,2932.0,0.002]
[1766600292649,6.5177,2932.3,2932.0,0.002]
[1766600293851,6.56032429,2932.6,2932.0,0.002]
[1766600294068,6.56032429,2932.6,2932.0,0.03610641]
[1766600295255,6.5177,2932.5,2932.0,0.03610641]
[1766600295455,6.56032719,2932.4,2932.0,0.03610641]
[1766600297652,6.56032719,2932.4,2932.0,0.002]
[1766600297831,6.56032719,2932.4,2931.8,0.03410873]
[1766600298359,7.557369,2932.4,2931.8,0.03410873]
[1766600298532,6.5177,2932.4,2931.8,0.03410873]
[1766600298736,6.56032865,2932.3,2931.8,0.03410873]
[1766600298933,6.56032865,2932.3,2931.8,3.44497398]
[1766600299334,6.56032865,2932.3,2931.8,0.03410873]
[1766600300462,6.56032865,2932.3,2931.8,3.44696621]
[1766600300659,6.56032865,2932.3,2931.8,4.82522975]
[1766600301265,6.56032865,2932.3,2931.8,11.74582975]
[1766600301463,6.5177,2932.3,2931.8,11.71172102]
[1766600302264,0.001,2932.4,2931.8,11.71172102]
[1766600302567,0.001,2932.4,2931.9,6.9206]
[1766600302765,0.001,2932.4,2932.0,8.31312613]
[1766600302940,0.001,2932.4,2932.0,8.27901972]
[1766600303136,0.001,2932.4,2932.1,0.03410524]
[1766600303957,6.5177,2932.3,2931.8,6.9226]
[1766600304167,6.5177,2932.3,2931.8,10.33347221]
[1766600304352,6.5177,2932.3,2931.8,11.70832589]
[1766600305968,6.5177,2932.3,2931.9,0.03410757]
[1766600306343,0.001,2932.4,2931.9,0.03410757]
[1766600306645,6.5177,2932.8,2931.8,9.08959975]
[1766600306847,6.5187,2933.0,2932.0,6.9206]
[1766600307068,6.5187,2933.0,2932.2,6.9206]
[1766600307069,6.56031993,2932.9,2932.2,6.9206]
[1766600307246,6.56031993,2932.9,2932.3,0.48677252]
[1766600309468,6.56031993,2932.9,2932.3,3.89704472]
[1766600310451,0.001,2933.0,2932.5,3.41005967]
[1766600310643,0.001,2933.0,2932.6,6.95469943]
[1766600310844,0.001,2933.0,2932.7,0.03409827]
[1766600311466,0.001,2933.0,2932.5,0.03410059]
[1766600311668,0.001,2933.0,2932.5,1.40895427]
[1766600313279,0.001,2933.0,2932.5,4.81895859]
[1766600313590,0.001,2933.0,2932.6,6.8276]
[1766600313760,0.001,2933.0,2932.7,0.03409827]
[1766600313955,3.40998804,2933.5,2932.7,6.86169827]
[1766600313956,0.001,2933.5,2932.7,6.86169827]
[1766600314278,6.7545,2933.5,2932.8,7.51376983]
[1766600314469,6.7535,2933.4,2932.9,0.03409594]
[1766600314782,6.79611412,2933.3,2932.9,0.03409594]
[1766600314984,6.7535,2933.3,2932.7,6.86169827]
[1766600315147,6.7535,2933.3,2932.7,6.8276]
[1766600315348,6.7535,2933.3,2932.7,7.9888458]
[1766600315548,6.7535,2933.3,2932.7,11.39867264]
[1766600316149,6.7535,2933.3,2932.7,7.9888458]
[1766600316354,6.7535,2933.3,2932.8,0.0340971]
[1766600316882,6.7535,2933.1,2932.5,3.41004936]
[1766600317090,6.7535,2933.1,2932.5,4.72483432]
[1766600317983,6.9358,2932.9,2932.1,3.41049849]
[1766600318164,6.9358,2932.7,2932.1,3.41049849]
[1766600318363,6.9358,2932.7,2932.0,3.41062241]
[1766600318569,6.9358,2932.7,2932.2,3.41038298]
[1766600318996,0.893,2932.6,2931.7,6.8795]
[1766600319154,7.8288,2932.5,2931.7,0.002]
[1766600319353,6.9358,2932.3,2931.7,0.002]
[1766600319583,0.0426301,2932.2,2931.7,0.002]
[1766600319762,6.9358,2932.1,2931.6,0.002]
[1766600320069,6.97843301,2932.0,2931.6,0.002]
[1766600320267,6.9358,2932.0,2931.6,0.002]
[1766600324393,0.69784301,2932.2,2931.6,0.002]
[1766600324580,0.0426301,2932.2,2931.6,0.002]
[1766600326064,0.893,2932.4,2931.6,0.002]
[1766600326264,0.04362865,2932.3,2931.6,0.002]
[1766600329187,0.001,2932.3,2931.6,0.002]
[1766600331222,0.04362865,2932.3,2931.6,0.002]
[1766600331510,0.001,2932.3,2931.6,0.002]
[1766600332382,0.001,2932.3,2931.7,10.28849021]
[1766600332587,0.001,2932.3,2931.7,6.8775]
[1766600332786,6.9368,2932.3,2931.7,6.8775]
[1766600333098,0.0426301,2932.2,2931.7,6.8775]
[1766600333609,6.9784301,2932.2,2931.7,6.8775]
[1766600333903,6.9358,2932.2,2931.7,6.8775]
[1766600334075,0.04263156,2932.1,2931.7,6.8775]
[1766600335260,6.9358,2932.2,2931.7,6.8775]
[1766600335603,0.04263156,2932.1,2931.7,6.8775]
[1766600336496,0.001,2932.3,2931.8,0.03410873]
[1766600336679,0.34210997,2932.3,2931.9,6.8775]
[1766600337299,0.03903388,2932.2,2931.9,6.8775]
[1766600337769,0.001,2932.3,2931.9,6.8775]
[1766600337969,0.04003388,2932.3,2931.9,6.8775]
[1766600338172,0.001,2932.3,2931.9,6.8775]
[1766600338368,0.04003388,2932.3,2931.9,6.8775]
[1766600338567,0.001,2932.3,2931.9,6.8775]
[1766600340575,0.001,2932.3,2931.9,6.8275]
[1766600342009,3.40974411,2932.8,2932.1,7.1949]
[1766600342219,3.40926,2933.2,2932.3,7.1949]
[1766600342384,0.93203388,2933.1,2932.5,7.1949]
[1766600342573,0.893,2933.2,2932.5,7.1949]
[1766600342779,7.52473388,2933.1,2932.5,7.1949]
[1766600342998,8.66848735,2933.1,2932.0,7.1949]
[1766600343305,8.66848735,2933.1,2932.2,7.1949]
[1766600343477,9.16848735,2933.1,2932.2,7.1949]
[1766600345706,12.57792286,2933.1,2932.2,7.1949]
[1766600346007,12.07792286,2933.1,2932.2,7.1949]
[1766600346676,0.03903388,2933.0,2932.4,7.1949]
[1766600348690,3.4485605,2933.0,2932.4,7.1949]
[1766600349129,0.03903388,2933.0,2932.4,7.1949]
[1766600350317,3.41016418,2933.3,2932.4,7.1949]
[1766600350520,0.001,2933.3,2932.5,4.16362264]
[1766600350712,0.001,2933.3,2932.6,7.1949]
[1766600351018,0.001,2933.3,2932.8,7.1949]
[1766600351633,0.894,2933.5,2932.5,4.12952205]
[1766600351634,0.001,2933.5,2933.0,7.1949]
[1766600351797,0.001,2933.5,2933.0,7.91779959]
[1766600352193,0.04003388,2933.5,2933.0,7.91779959]
[1766600356998,3.44893569,2933.5,2933.0,7.91779959]
[1766600357216,0.04003388,2933.5,2933.0,7.1949]
[1766600360923,3.44893531,2933.5,2933.0,7.1949]
[1766600361649,0.04003388,2933.5,2933.0,7.1949]
[1766600362201,3.44895373,2933.5,2933.0,7.1949]
[1766600365140,0.04003388,2933.5,2933.0,7.1949]
[1766600367233,0.04003388,2933.5,2933.0,7.1969]
[1766600367531,0.001,2933.5,2933.0,7.1969]
[1766600367728,0.04003388,2933.5,2933.0,7.1969]
[1766600367905,3.44894046,2933.5,2933.0,7.1969]
[1766600369117,10.93464046,2933.5,2933.0,7.1969]
[1766600369411,10.89560658,2933.5,2933.0,7.1969]
[1766600369608,0.03903388,2933.4,2933.0,7.1969]
[1766600370020,3.44804739,2933.4,2933.0,7.1969]
[1766600370239,0.03903388,2933.4,2933.0,7.1969]
[1766600373113,3.44805662,2933.4,2933.0,7.1969]
[1766600373314,4.85149605,2933.2,2932.4,7.1869]
[1766600373534,0.03903388,2933.1,2932.4,7.1869]
[1766600373713,3.4485056,2933.1,2932.4,7.1869]
[1766600374126,6.85797732,2933.1,2932.4,7.1869]
[1766600374447,1.17094734,2933.0,2932.3,0.002]
[1766600374646,0.03903388,2932.9,2932.3,0.03610292]
[1766600375837,3.44872714,2932.9,2932.3,0.002]
[1766600376545,10.22922714,2932.9,2932.3,0.002]
[1766600376748,10.19019326,2932.9,2932.3,0.002]
[1766600376923,1.17514794,2932.8,2932.3,0.002]
[1766600377327,7.03453388,2932.8,2932.3,0.002]
[1766600377526,6.9955,2932.8,2932.3,0.002]
[1766600377728,0.03903388,2932.7,2932.3,0.002]
[1766600379024,6.9955,2932.6,2932.3,0.002]
[1766600379226,7.03453388,2932.5,2932.0,0.03410641]
[1766600379543,6.9955,2932.5,2932.0,0.03410641]
[1766600379742,0.03903388,2932.4,2932.0,0.03410641]
[1766600380452,7.5342774,2932.4,2931.9,0.002]
[1766600380653,7.49524352,2932.4,2931.9,0.002]
[1766600380845,0.03903388,2932.3,2931.9,0.002]
[1766600381947,6.9955,2932.2,2931.9,0.002]
[1766600384236,0.49974352,2932.4,2931.9,0.002]
[1766600384442,7.5342774,2932.4,2931.9,0.002]
[1766600384654,7.49524352,2932.4,2931.9,0.002]
[1766600385155,0.03903388,2932.3,2931.9,0.002]
[1766600385355,7.03453388,2932.3,2931.9,0.002]
[1766600385581,6.9955,2932.3,2931.9,0.002]
[1766600385746,0.03903388,2932.2,2931.9,0.002]
[1766600387074,0.03903388,2932.2,2931.8,0.03610873]
[1766600387075,6.9955,2932.1,2931.8,0.002]
[1766600388079,6.9955,2932.1,2931.6,0.002]
[1766600388269,0.03903388,2932.0,2931.6,0.002]
[1766600388470,6.9955,2931.9,2931.6,0.002]
[1766600389256,0.03903388,2931.8,2931.6,0.002]
[1766600389462,6.9955,2931.9,2931.6,0.002]
[1766600390100,7.69505,2931.9,2931.6,0.002]
[1766600390264,7.69505,2931.9,2930.5,0.002]
[1766600390265,6.9955,2931.4,2930.5,0.002]
[1766600390588,8.26281282,2931.5,2930.5,0.002]
[1766600390589,11.84699605,2930.9,2930.5,0.002]
[1766600391157,6.9955,2930.9,2930.5,0.002]
[1766600391890,7.8885,2931.4,2930.6,6.823]
[1766600392063,6.9955,2931.8,2930.8,6.823]
[1766600392248,6.9955,2931.6,2931.0,6.823]
[1766600392454,0.04264028,2931.5,2931.0,6.823]
[1766600392707,6.9955,2931.9,2931.1,6.89619734]
[1766600392852,4.85149605,2932.3,2931.3,6.88405731]
[1766600393056,6.9955,2932.5,2931.4,6.89618362]
[1766600393255,6.9955,2932.5,2931.6,6.88405731]
[1766600393256,0.04262719,2932.4,2931.6,6.88405731]
[1766600393482,0.04262719,2932.4,2931.8,6.823]
[1766600393689,6.9955,2932.5,2931.9,0.01211551]
[1766600393886,7.69505,2932.5,2931.9,0.01211551]
[1766600394351,7.69505,2932.5,2931.8,6.88405731]
[1766600394352,7.03812719,2932.4,2931.8,6.88405731]
[1766600394556,6.9955,2932.4,2931.8,6.88405731]
[1766600394784,7.03812865,2932.3,2931.8,6.88405731]
[1766600395092,6.9955,2932.3,2931.8,6.88405731]
[1766600395255,0.0426301,2932.2,2931.8,6.88405731]
[1766600395869,0.04262574,2932.5,2931.9,0.012118]
[1766600396070,7.03812574,2932.5,2931.9,0.012118]
[1766600396276,6.9955,2932.5,2931.9,0.012118]
[1766600396480,0.04262719,2932.4,2931.9,0.012118]
[1766600396993,6.9955,2932.3,2931.9,0.012118]
[1766600397195,0.0426301,2932.2,2931.9,0.012118]
[1766600398273,0.04262574,2932.5,2931.9,0.012118]
[1766600398674,7.03812574,2932.5,2931.9,0.012118]